bitfinex-derivatives/quotes_BNBF0:USTF0_20250425
["timestamp","ask_amount","ask_price","bid_price","bid_amount"]
[1745583842988,1.13912283,607.47,606.65,3.315]
[1745583843181,1.13912283,607.46,606.65,3.315]
[1745583843486,1.13912283,607.45,606.65,3.315]
[1745583843889,1.13912283,607.44,606.65,3.315]
[1745583844288,1.13912283,607.43,606.65,3.315]
[1745583844892,1.13912283,607.42,606.65,3.315]
[1745583845490,1.13912283,607.41,606.65,3.315]
[1745583845793,1.13912283,607.4,606.65,3.315]
[1745583846190,1.13912283,607.39,606.65,3.315]
[1745583847290,1.13912283,607.38,606.65,3.315]
[1745583847790,1.13912283,607.37,606.65,3.315]
[1745583847990,1.13912283,607.36,606.65,3.315]
[1745583848392,1.13912283,607.35,606.65,3.315]
[1745583848893,1.13912283,607.34,606.65,3.315]
[1745583849293,1.13912283,607.33,606.65,3.315]
[1745583849696,1.13912283,607.32,606.65,3.315]
[1745583850400,1.13912283,607.32,606.65,2.175]
[1745583850699,1.13912283,607.31,606.65,2.175]
[1745583851298,1.13912283,607.3,606.65,2.175]
[1745583852000,1.13912283,607.29,606.65,0.973]
[1745583852401,1.13912283,607.28,606.65,0.973]
[1745583853198,1.13912283,607.28,606.2,0.28677616]
[1745583853404,1.13912283,607.27,606.21,0.30274261]
[1745583854002,1.13912283,607.26,606.21,0.30274261]
[1745583854203,1.13912283,607.25,606.21,0.30274261]
[1745583854603,1.13912283,607.24,606.21,0.30274261]
[1745583854800,1.12786208,607.23,606.21,0.30274261]
[1745583855306,1.12786208,607.22,606.21,0.30274261]
[1745583855504,1.12786208,607.21,606.21,0.30274261]
[1745583855906,1.12786208,607.2,606.21,0.30274261]
[1745583856205,1.12786208,607.2,606.22,0.30274261]
[1745583856401,1.12786208,607.2,606.21,0.30274261]
[1745583856602,1.12786208,607.2,606.22,0.30274261]
[1745583856803,1.12786208,607.2,606.21,0.30274261]
[1745583857003,1.12786208,607.2,606.22,0.30274261]
[1745583857204,1.12786208,607.19,606.21,0.30274261]
[1745583857405,1.12786208,607.19,606.2,0.28683762]
[1745583857600,1.12786208,607.19,606.21,0.30276156]
[1745583857801,1.12786208,607.18,606.21,0.30276156]
[1745583858209,1.12786208,607.17,606.21,0.30276156]
[1745583858907,1.12786208,607.16,605.97,1.03194991]
[1745583859110,1.12786208,607.16,605.98,0.30276762]
[1745583859307,1.12786208,607.15,605.98,0.30276762]
[1745583859808,1.12786208,607.14,605.98,0.30276762]
[1745583860208,1.12786208,607.14,605.99,0.28689082]
[1745583860406,1.12786208,607.14,606.0,0.30276762]
[1745583860606,1.12786208,607.13,606.0,0.30276762]
[1745583860808,1.12786208,607.12,606.0,0.30276762]
[1745583861709,1.12786208,607.11,606.0,0.30276762]
[1745583862110,1.12786208,607.11,605.99,0.28689082]
[1745583862310,1.12786208,607.11,606.0,0.30273281]
[1745583862710,1.12786208,607.1,606.0,0.30273281]
[1745583863209,1.12786208,607.09,606.0,0.30273281]
[1745583863611,1.12786208,607.08,606.0,0.30273281]
[1745583863810,1.12786208,607.08,606.01,0.30274849]
[1745583864010,1.12786208,607.08,606.0,0.30274849]
[1745583864213,1.12786208,607.07,606.01,0.30274849]
[1745583864412,1.12786208,607.07,606.0,0.30274849]
[1745583864609,1.12786208,607.06,606.0,0.30274849]
[1745583864909,1.12786208,607.05,606.0,0.30274849]
[1745583865813,1.12786208,607.04,606.0,0.30274849]
[1745583866415,1.12786208,607.04,606.17,1.03194991]
[1745583866614,1.12786208,607.03,606.18,0.30274849]
[1745583867113,1.12786208,607.02,606.18,0.30274849]
[1745583867516,1.12786208,607.01,606.18,0.30274849]
[1745583868315,1.12786208,607.0,606.17,1.03194991]
[1745583868515,1.12786208,607.0,606.19,1.03194991]
[1745583868710,1.12786208,606.99,606.2,0.30272956]
[1745583869113,1.12786208,606.98,606.2,0.30272956]
[1745583869818,1.12786208,606.97,606.2,0.30272956]
[1745583870516,1.12786208,606.96,606.2,0.30272956]
[1745583870718,1.12786208,606.95,606.2,0.30272956]
[1745583871511,1.25076347,608.41,606.19,1.03194991]
[1745583871512,1.12786208,606.94,606.19,1.03194991]
[1745583871712,1.12786208,606.94,606.25,1.03194991]
[1745583871914,1.12786208,606.94,606.26,0.30269706]
[1745583872116,1.12786208,608.29,606.26,0.30269706]
[1745583872618,1.12786208,608.28,606.26,0.30269706]
[1745583872817,1.41456382,608.28,606.25,1.03194991]
[1745583873017,1.12786208,608.27,606.25,1.03194991]
[1745583873519,1.12786208,608.26,606.25,1.03194991]
[1745583873815,1.12786208,608.26,606.19,1.03194991]
[1745583874021,1.12786208,608.26,606.26,1.332]
[1745583874221,1.12786208,608.25,606.26,1.332]
[1745583874422,1.12786208,608.24,606.26,1.332]
[1745583874823,1.12786208,608.23,606.26,1.332]
[1745583875124,1.41457563,608.23,606.26,1.332]
[1745583875318,1.12786208,608.22,606.26,1.332]
[1745583876327,1.12786208,608.21,606.26,1.332]
[1745583876726,1.12786208,608.2,606.26,1.332]
[1745583877225,1.12786208,608.19,606.26,1.332]
[1745583878223,1.41458153,608.18,606.26,1.332]
[1745583878828,1.12786208,608.17,606.26,1.332]
[1745583879224,1.12786208,608.16,606.26,1.332]
[1745583879827,1.12786208,608.15,606.26,1.332]
[1745583880223,1.12786208,608.14,606.26,1.332]
[1745583880923,1.12786208,608.13,606.26,1.332]
[1745583881526,1.12786208,608.12,606.26,1.332]
[1745583882028,1.12786208,608.11,606.26,1.332]
[1745583882729,1.12786208,608.1,606.26,1.332]
[1745583882932,1.12786208,608.09,606.26,1.332]
[1745583883329,1.12786208,608.08,606.26,1.332]
[1745583883930,1.12786208,608.07,606.26,1.332]
[1745583884132,1.4146087,608.07,606.26,1.332]
[1745583884431,1.12786208,608.06,606.26,1.332]
[1745583885028,1.12786208,608.05,606.26,1.332]
[1745583885332,1.12786208,608.05,606.27,1.284]
[1745583885731,1.12786208,608.04,606.27,1.284]
[1745583886532,1.12786208,608.03,606.27,1.284]
[1745583887134,1.41462051,608.02,606.27,1.284]
[1745583887534,1.12786208,608.01,606.27,1.284]
[1745583888034,1.12786208,608.0,606.27,1.284]
[1745583888429,1.12786208,607.99,606.27,1.284]
[1745583888829,1.12786208,607.98,606.27,1.284]
[1745583889030,1.12786208,607.97,606.27,1.284]
[1745583889232,1.12786208,607.96,606.27,1.284]
[1745583889433,1.12786208,607.95,606.27,1.284]
[1745583889634,1.12786208,607.94,606.27,1.284]
[1745583889836,1.12786208,607.93,606.27,1.284]
[1745583890234,1.41466424,607.93,606.27,1.284]
[1745583890534,1.12786208,607.92,606.27,1.284]
[1745583890734,1.12786208,607.91,606.27,1.284]
[1745583891228,1.12786208,607.91,606.27,2.68]
[1745583891630,1.12786208,607.9,606.27,2.68]
[1745583892135,1.12786208,607.9,606.27,3.649]
[1745583892636,1.12786208,607.89,606.27,3.649]
[1745583893237,2.12803507,608.62,606.27,3.649]
[1745583893238,1.41469142,607.88,606.27,3.649]
[1745583893436,0.28682934,607.88,606.27,3.649]
[1745583893838,1.14057316,607.87,606.27,3.649]
[1745583894538,1.14057316,607.86,606.27,3.649]
[1745583894941,1.14057316,607.85,606.27,3.649]
[1745583895333,1.14057316,607.85,606.27,4.959]
[1745583895638,1.14057316,607.84,606.27,4.959]
[1745583896439,1.14057316,607.83,606.27,4.959]
[1745583897039,1.14057316,607.82,606.27,4.959]
[1745583897438,1.14057316,607.81,606.27,4.959]
[1745583897939,1.14057316,607.8,606.27,4.959]
[1745583898540,1.14057316,607.79,606.27,4.959]
[1745583899148,1.14057316,607.78,606.27,4.959]
[1745583899349,1.42744506,607.78,606.27,4.959]
[1745583899541,1.14057316,607.77,606.27,4.959]
[1745583900142,1.14057316,607.76,606.27,4.959]
[1745583901045,1.14057316,607.75,606.27,4.959]
[1745583901444,1.14057316,607.74,606.27,4.959]
[1745583901944,1.14057316,607.73,606.27,4.959]
[1745583902644,1.14057316,607.72,606.27,4.959]
[1745583902844,1.14057316,607.71,606.27,4.959]
[1745583903741,1.14057316,607.7,606.27,4.959]
[1745583904046,1.14057316,607.69,606.27,4.959]
[1745583904847,1.14057316,607.68,606.27,4.959]
[1745583905243,1.14057316,607.67,606.27,4.959]
[1745583905843,1.14057316,607.66,606.27,4.959]
[1745583906142,1.14057316,607.65,606.27,4.959]
[1745583906648,1.14057316,607.64,606.27,4.959]
[1745583907147,1.14057316,607.63,606.27,4.959]
[1745583907852,1.14057316,607.62,606.27,4.959]
[1745583908448,1.14057316,607.61,606.27,4.959]
[1745583908853,1.14057316,607.6,606.27,4.959]
[1745583909554,1.14057316,607.59,606.27,4.959]
[1745583910455,1.14057316,607.58,606.27,4.959]
[1745583910655,1.14057316,607.57,606.27,4.959]
[1745583911055,1.14057316,607.56,606.27,4.959]
[1745583911555,1.14057316,607.55,606.27,4.959]
[1745583912256,1.14057316,607.54,606.27,4.959]
[1745583912857,1.14057316,607.53,606.27,4.959]
[1745583913453,1.14057316,607.52,606.27,4.959]
[1745583913958,1.14057316,607.51,606.27,4.959]
[1745583914259,1.14057316,607.5,606.27,4.959]
[1745583914859,1.14057316,607.49,606.27,4.959]
[1745583915662,1.14057316,607.48,606.27,4.959]
[1745583916056,1.14057316,607.47,606.27,4.959]
[1745583916960,1.14057316,607.46,606.27,4.959]
[1745583917655,1.14057316,607.45,606.27,4.959]
[1745583918156,1.14057316,607.44,606.27,4.959]
[1745583918660,1.14057316,607.43,606.27,4.959]
[1745583919360,0.2868991,607.61,606.27,4.959]
[1745583919361,1.14057316,607.42,606.27,4.959]
[1745583919954,1.14057316,607.41,606.27,4.959]
[1745583920261,1.14057316,607.4,606.27,4.959]
[1745583920761,1.14057316,607.39,606.27,4.959]
[1745583921355,1.14057316,607.38,606.27,4.959]
[1745583921655,1.14057316,607.37,606.27,4.959]
[1745583922058,1.14057316,607.36,606.27,4.959]
[1745583922561,1.14057316,607.35,606.27,4.959]
[1745583923061,1.14057316,607.34,606.27,4.959]
[1745583923460,1.14057316,607.33,606.27,4.959]
[1745583924256,1.14057316,607.32,606.27,4.959]
[1745583925061,1.14057316,607.31,606.27,4.959]
[1745583925664,1.14057316,607.3,606.27,4.959]
[1745583925862,1.14057316,607.29,606.27,4.959]
[1745583926261,1.14057316,607.28,606.27,4.959]
[1745583926569,1.14057316,607.27,606.27,4.959]
[1745583927366,1.14057316,607.26,606.27,4.959]
[1745583928070,1.14057316,607.25,606.27,4.959]
[1745583928465,1.14057316,607.24,606.27,4.959]
[1745583928972,1.14057316,607.23,606.27,4.959]
[1745583929269,1.14057316,607.22,606.27,4.959]
[1745583929671,1.14057316,607.21,606.27,4.959]
[1745583930172,1.14057316,607.2,606.27,4.959]
[1745583930571,1.14057316,607.19,606.27,4.959]
[1745583931571,1.14057316,607.18,606.27,4.959]
[1745583932274,1.14057316,607.17,606.27,4.959]
[1745583932979,1.14057316,607.16,606.27,4.959]
[1745583933275,1.14057316,607.15,606.27,4.959]
[1745583933570,1.14057316,607.14,606.27,4.959]
[1745583933771,1.14057316,607.13,606.27,4.959]
[1745583934071,1.14057316,607.12,606.27,4.959]
[1745583934369,1.14057316,607.11,606.27,4.959]
[1745583934563,1.14057316,607.1,606.27,4.959]
[1745583935169,1.14057316,607.09,606.27,4.959]
[1745583935570,1.14057316,607.08,606.27,4.959]
[1745583935871,1.14057316,607.07,606.27,4.959]
[1745583936072,1.14057316,607.06,606.27,4.959]
[1745583936471,1.14057316,607.05,606.27,4.959]
[1745583936771,1.14057316,607.04,606.27,4.959]
[1745583936971,1.14057316,607.03,606.27,4.959]
[1745583937170,1.14057316,607.02,606.27,4.959]
[1745583937571,1.13607031,607.01,606.27,3.649]
[1745583937770,1.13607031,607.0,606.27,3.649]
[1745583938271,1.13607031,606.99,606.27,3.649]
[1745583938475,1.13607031,606.98,606.27,2.68]
[1745583938673,1.13607031,606.97,606.27,2.68]
[1745583938868,1.13607031,606.96,606.27,2.68]
[1745583939072,1.13607031,606.96,606.27,1.396]
[1745583939268,1.13607031,606.96,605.86,0.28691802]
[1745583939572,1.13607031,606.95,605.86,0.28691802]
[1745583939772,1.13607031,606.95,605.87,0.30286211]
[1745583939974,1.13607031,606.94,605.87,0.30286211]
[1745583940283,1.13607031,606.94,605.88,0.30286211]
[1745583940467,1.13607031,606.93,605.29,0.30286211]
[1745583940673,1.13607031,606.93,605.3,0.30290785]
[1745583940868,1.13607031,606.93,605.31,0.30290785]
[1745583941174,1.13607031,606.93,605.35,1.03194991]
[1745583941373,1.13607031,606.92,605.36,0.30290785]
[1745583941574,1.13607031,606.92,605.37,0.30290785]
[1745583941873,1.13607031,606.91,605.38,0.30290785]
[1745583942073,1.13607031,606.91,605.39,0.30290785]
[1745583942274,1.13607031,606.9,605.4,0.30290785]
[1745583942468,1.13607031,606.9,605.38,2.387]
[1745583942469,1.13607031,606.89,605.41,0.30290785]
[1745583942772,1.13607031,606.89,605.42,0.30290785]
[1745583942970,1.13607031,606.89,605.39,0.30290785]
[1745583943169,1.13607031,606.89,605.4,0.30290785]
[1745583943374,1.13607031,606.88,605.73,1.03194991]
[1745583944071,1.13607031,606.87,605.73,1.03194991]
[1745583944776,1.13607031,606.86,605.73,1.03194991]
[1745583945077,1.13607031,606.85,605.73,1.03194991]
[1745583945272,1.13607031,606.85,605.74,0.30296485]
[1745583945576,1.13607031,606.84,605.74,0.30296485]
[1745583946077,1.13607031,606.84,605.75,0.30296485]
[1745583946272,1.13607031,606.83,605.51,0.30296485]
[1745583946469,1.13607031,606.82,605.52,0.30296485]
[1745583946670,1.13607031,606.82,605.51,0.30296485]
[1745583946874,1.13607031,606.81,605.52,0.30296485]
[1745583947074,1.13607031,606.81,605.51,0.30296485]
[1745583947273,1.13607031,606.81,605.53,0.30296485]
[1745583947472,1.13607031,606.8,605.54,0.30296485]
[1745583947674,1.13607031,606.8,605.51,0.30296485]
[1745583947871,1.13607031,606.79,605.52,0.30296485]
[1745583948071,1.13607031,606.79,605.51,0.30296485]
[1745583948273,1.13607031,606.79,605.52,0.30296485]
[1745583948578,1.13607031,606.78,605.51,0.30296485]
[1745583948772,1.13607031,606.78,605.52,0.30296485]
[1745583948975,1.13607031,606.77,605.63,1.03194991]
[1745583949175,1.13607031,606.77,605.64,0.30299776]
[1745583949678,1.13607031,606.76,605.64,0.30299776]
[1745583950368,1.13607031,606.75,605.64,0.30299776]
[1745583950570,1.13607031,606.75,605.65,0.30302216]
[1745583950774,1.13607031,606.75,605.64,0.30302216]
[1745583950970,1.13607031,606.74,605.65,0.30302216]
[1745583951175,1.13607031,606.73,605.64,0.30302216]
[1745583951376,1.13607031,606.72,605.65,0.30302216]
[1745583951578,1.13607031,606.71,605.64,0.30302216]
[1745583951780,1.13607031,606.71,605.61,0.30304854]
[1745583951973,1.13607031,606.7,605.6,1.03194991]
[1745583952174,1.13607031,606.7,605.61,0.30305244]
[1745583952378,1.13607031,606.69,605.61,0.30305244]
[1745583952571,1.13607031,606.68,605.61,0.30305244]
[1745583953277,1.13607031,606.67,605.61,0.30305244]
[1745583953478,1.13607031,606.66,605.61,0.30305244]
[1745583953778,1.13607031,606.65,605.6,1.03194991]
[1745583954475,1.13607031,606.64,605.6,1.03194991]
[1745583954680,1.13607031,606.64,605.49,0.28714648]
[1745583954874,1.13607031,606.64,605.5,0.30307267]
[1745583955077,1.13607031,606.64,605.51,0.30307267]
[1745583955280,1.13607031,606.63,605.49,0.28716781]
[1745583955474,1.13607031,606.63,605.5,0.3030753]
[1745583955979,1.13607031,606.62,605.5,0.3030753]
[1745583956682,1.13607031,606.61,605.5,0.3030753]
[1745583956882,1.13607031,606.6,605.49,0.28716781]
[1745583957080,1.13607031,606.6,605.5,0.30307121]
[1745583957381,1.13607031,606.59,605.5,0.30307121]
[1745583957683,1.13607031,606.58,605.5,0.30307121]
[1745583958285,1.13607031,606.58,605.39,0.30307121]
[1745583958480,1.13607031,606.57,605.4,0.30305502]
[1745583958686,1.13607031,606.56,605.41,0.30305502]
[1745583958984,1.13607031,606.55,605.42,0.30305502]
[1745583959179,1.13607031,606.55,605.42,0.28717018]
[1745583959386,1.13607031,606.55,605.43,0.30305502]
[1745583959688,1.13607031,606.54,605.43,0.30305502]
[1745583959987,1.13607031,606.53,605.43,0.30305502]
[1745583960486,1.13607031,606.52,605.43,0.30305502]
[1745583962587,1.13607031,606.46,605.43,0.30306837]
[1745583962784,1.13607031,606.46,605.44,0.30307263]
[1745583962984,1.13607031,606.46,605.43,0.30307263]
[1745583963186,1.13607031,606.46,605.44,0.30307263]
[1745583963386,1.13607031,606.45,605.43,0.30307263]
[1745583963586,1.13607031,606.45,605.44,0.30307263]
[1745583963791,1.13607031,606.44,605.43,0.30307263]
[1745583963997,1.13607031,606.44,605.44,0.30307263]
[1745583964298,1.13607031,606.43,605.45,0.303073]
[1745583964498,1.13607031,606.43,605.39,0.303073]
[1745583964793,1.13607031,606.42,605.46,1.629073]
[1745583964994,1.13607031,606.42,605.47,0.303073]
[1745583965192,1.13607031,606.41,605.47,0.303073]
[1745583965597,1.13607031,606.4,605.47,0.303073]
[1745583965897,1.13607031,606.39,605.47,0.303073]
[1745583966491,1.13607031,606.39,605.46,1.326]
[1745583966690,1.13607031,606.38,605.46,1.326]
[1745583967102,1.13607031,606.37,605.46,1.326]
[1745583967499,1.13607031,606.36,605.46,1.326]
[1745583967795,1.13607031,606.35,605.46,1.326]
[1745583968494,1.13607031,606.34,605.46,1.326]
[1745583969197,1.13607031,606.33,605.46,1.326]
[1745583970599,1.13607031,606.32,605.46,1.326]
[1745583971504,1.13607031,606.31,605.46,1.326]
[1745583971900,1.13607031,606.31,605.47,0.929]
[1745583973102,1.13607031,606.3,605.47,0.929]
[1745583973398,1.13607031,606.29,605.47,0.929]
[1745583973802,1.13607031,606.28,605.47,0.929]
[1745583974103,1.13607031,606.27,605.47,0.929]
[1745583974301,1.13607031,606.26,605.47,0.929]
[1745583974807,1.13607031,606.25,605.47,0.929]
[1745583975209,1.13607031,606.24,605.47,0.929]
[1745583976405,1.13607031,606.23,605.47,0.929]
[1745583976703,1.13607031,606.22,605.47,0.929]
[1745583977113,1.13607031,606.21,605.47,0.929]
[1745583978304,1.13607031,606.2,605.48,0.30320543]
[1745583979307,1.13607031,606.19,605.47,0.929]
[1745583979506,1.13607031,606.19,605.49,0.30315028]
[1745583979713,1.13607031,606.19,605.5,0.30315028]
[1745583979907,1.13607031,606.19,605.48,0.30315028]
[1745583980104,1.13607031,606.18,605.49,0.30315028]
[1745583980306,1.13607031,606.17,605.49,0.30315028]
[1745583980606,1.13607031,606.17,605.47,0.929]
[1745583981110,1.13607031,606.16,605.47,0.929]
[1745583981609,1.13607031,606.15,605.47,0.929]
[1745583982311,1.13607031,606.14,605.47,0.929]
[1745583982810,1.13607031,606.13,605.47,0.929]
[1745583983311,1.13607031,606.12,605.47,0.929]
[1745583983918,1.13607031,606.11,605.47,0.929]
[1745583984314,1.25076347,607.97,605.47,0.929]
[1745583984315,1.13607031,606.1,605.47,0.929]
[1745583985115,1.13607031,606.09,605.47,0.929]
[1745583985619,1.13607031,606.08,605.47,0.929]
[1745583986210,1.13607031,606.07,605.47,0.929]
[1745583986915,1.13607031,606.06,605.47,0.929]
[1745583987712,1.13607031,606.05,605.46,1.326]
[1745583988214,1.13607031,606.04,605.46,1.326]
[1745583988621,1.13607031,606.03,605.46,1.326]
[1745583989416,1.13607031,606.02,605.46,1.326]
[1745583989618,1.13607031,606.02,605.45,1.319]
[1745583990314,1.13607031,606.01,605.45,1.319]
[1745583990619,1.13607031,606.0,605.45,1.319]
[1745583991014,1.13607031,605.99,605.45,1.319]
[1745583992019,1.13607031,605.98,605.45,1.319]
[1745583992214,1.13607031,605.97,605.45,1.319]
[1745583993019,1.13607031,605.96,605.45,1.319]
[1745583993419,1.13607031,605.95,605.45,1.319]
[1745583994514,1.13607031,605.94,605.45,1.319]
[1745583995616,1.13607031,605.93,605.45,1.319]
[1745583996020,1.13607031,605.92,605.45,1.319]
[1745583996420,1.13607031,605.91,605.45,1.319]
[1745583996621,1.13607031,605.9,605.45,1.319]
[1745583997221,1.13607031,605.89,605.45,1.319]
[1745583997620,1.13607031,605.88,605.45,1.319]
[1745583998326,1.13607031,605.87,605.45,1.319]
[1745583998926,1.13607031,605.86,605.45,1.319]
[1745583999426,1.13607031,605.85,605.45,1.319]
[1745584000128,1.25076347,607.4,605.45,1.319]
[1745584000526,1.13333116,607.39,605.45,1.319]
[1745584001028,2.12803507,608.06,605.45,1.319]
[1745584001029,1.13333116,607.38,605.45,1.319]
[1745584001423,0.28712397,607.37,605.45,1.319]
[1745584001822,1.13333116,607.36,605.45,1.319]
[1745584002326,1.13333116,607.35,605.45,1.319]
[1745584003229,1.13333116,607.34,605.45,1.319]
[1745584003725,1.13333116,607.34,605.46,0.30306264]
[1745584004028,1.13333116,607.33,605.46,0.30306264]
[1745584005028,1.13333116,607.32,605.46,0.30306264]
[1745584005231,1.13333116,607.32,605.45,1.319]
[1745584005529,1.13333116,607.31,605.45,1.319]
[1745584006131,1.13333116,607.3,605.45,1.319]
[1745584006929,1.13333116,607.29,605.45,1.319]
[1745584007529,1.13333116,607.28,605.45,1.319]
[1745584008331,1.13333116,607.27,605.45,1.319]
[1745584008632,1.13333116,607.26,605.45,1.319]
[1745584009231,1.42043382,607.25,605.45,1.319]
[1745584009531,1.13333116,607.24,605.45,1.319]
[1745584010232,1.13333116,607.23,605.45,1.319]
[1745584011037,1.13333116,607.22,605.45,1.319]
[1745584011533,1.13333116,607.21,605.45,1.319]
[1745584012134,1.13333116,607.21,605.46,0.30311091]
[1745584012335,1.13333116,607.2,605.46,0.30311091]
[1745584012631,1.13333116,607.19,605.46,0.30311091]
[1745584013433,1.13333116,607.19,605.45,1.319]
[1745584013632,1.13333116,607.18,605.46,0.30308709]
[1745584013937,1.13333116,607.17,605.46,0.30308709]
[1745584014137,1.13333116,607.17,605.45,1.319]
[1745584014334,1.13333116,607.16,605.45,1.319]
[1745584014530,1.13333116,607.15,605.45,1.319]
[1745584015137,1.13333116,607.14,605.45,1.319]
[1745584015637,1.13333116,607.13,605.46,0.30310739]
[1745584015838,1.13333116,607.13,605.45,1.319]
[1745584016038,1.13333116,607.12,605.46,0.30311863]
[1745584016741,1.13333116,607.11,605.46,0.30311863]
[1745584017437,1.13333116,607.11,605.45,1.319]
[1745584017639,1.13333116,607.1,605.45,1.319]
[1745584018134,1.13333116,607.09,605.45,1.319]
[1745584018538,1.13333116,607.08,605.45,1.319]
[1745584018748,1.13333116,607.08,605.46,1.294]
[1745584019241,1.13333116,607.07,605.46,1.294]
[1745584019842,1.13333116,607.06,605.46,1.294]
[1745584020035,1.13333116,607.05,605.46,1.294]
[1745584020336,1.13333116,607.04,605.46,1.294]
[1745584021141,1.13333116,607.03,605.46,1.294]
[1745584021342,1.13333116,607.02,605.46,1.294]
[1745584022139,1.13333116,607.01,605.46,1.294]
[1745584022344,1.13333116,607.0,605.46,1.294]
[1745584023144,1.13333116,606.99,605.46,1.294]
[1745584023546,1.13333116,606.98,605.47,0.896]
[1745584023943,1.13333116,606.97,605.47,0.896]
[1745584024345,1.13333116,606.96,605.47,0.896]
[1745584024545,1.13333116,606.96,605.48,0.30306987]
[1745584024847,1.13333116,606.95,605.48,0.30306987]
[1745584025349,1.13333116,606.94,605.48,0.30306987]
[1745584025548,1.13333116,606.94,605.47,0.896]
[1745584025751,1.13333116,606.93,605.47,0.896]
[1745584026453,1.13333116,606.92,605.47,0.896]
[1745584026954,1.13333116,606.91,605.47,0.896]
[1745584027357,1.13333116,606.9,605.47,0.896]
[1745584027550,1.13333116,606.9,605.48,0.30306532]
[1745584027950,1.13333116,606.89,605.48,0.30306532]
[1745584028355,1.13333116,606.88,605.48,0.30306532]
[1745584028858,1.13333116,606.87,605.48,0.30306532]
[1745584029058,1.13333116,606.86,605.48,0.30306532]
[1745584029749,1.13333116,606.85,605.48,0.30306532]
[1745584030156,1.13333116,606.84,605.48,0.30306532]
[1745584030461,1.13333116,606.83,605.48,0.30306532]
[1745584030754,1.13333116,606.82,605.48,0.30306532]
[1745584031355,1.13333116,606.81,605.48,0.30306532]
[1745584031755,1.13333116,606.8,605.48,0.30306532]
[1745584032052,1.13333116,606.79,605.48,0.30306532]
[1745584032355,1.13333116,606.79,605.47,0.896]
[1745584032555,1.13333116,606.78,605.48,0.3031094]
[1745584032856,1.13333116,606.77,605.48,0.3031094]
[1745584033057,1.13333116,606.76,605.48,0.3031094]
[1745584033454,1.13333116,606.75,605.48,0.3031094]
[1745584033655,1.13333116,606.74,605.48,0.3031094]
[1745584033957,1.13333116,606.73,605.48,0.3031094]
[1745584034155,1.13333116,606.73,605.47,0.896]
[1745584034555,1.13333116,606.72,605.47,0.896]
[1745584035054,1.13333116,606.71,605.47,0.896]
[1745584035456,1.13333116,606.7,605.47,0.896]
[1745584035762,1.13333116,606.7,605.48,0.30309991]
[1745584036056,1.13333116,606.69,605.48,0.30309991]
[1745584036651,1.13333116,606.68,605.48,0.30309991]
[1745584037056,1.13333116,606.68,605.47,0.896]
[1745584037251,1.13333116,606.68,605.48,0.30307578]
[1745584037451,1.13333116,606.67,605.48,0.30307578]
[1745584037959,1.13333116,606.66,605.48,0.30307578]
[1745584038757,1.13333116,606.65,605.49,0.30307568]
[1745584038955,1.13333116,606.64,605.5,0.30307568]
[1745584039152,1.13333116,606.63,605.48,0.30307568]
[1745584039351,1.13333116,606.63,605.49,0.30307568]
[1745584039551,1.13333116,606.63,605.48,0.30307568]
[1745584039750,1.13333116,606.63,605.49,0.30307568]
[1745584039956,1.13333116,606.62,605.48,0.30307568]
[1745584040157,1.13333116,606.62,605.47,0.896]
[1745584040456,1.13333116,606.62,605.48,0.30307642]
[1745584040652,1.13333116,606.61,605.48,0.30307642]
[1745584041157,1.13333116,606.6,605.48,0.30307642]
[1745584041456,1.13333116,606.59,605.48,0.30307642]
[1745584041752,1.13333116,606.59,605.47,0.896]
[1745584042058,1.13333116,606.58,605.48,1.33502981]
[1745584042358,1.13333116,606.58,605.49,1.3200799]
[1745584042558,1.13333116,606.58,605.5,0.3030799]
[1745584042960,1.13333116,606.57,605.5,0.3030799]
[1745584043459,1.13333116,606.57,605.49,1.017]
[1745584043662,1.13333116,606.56,605.5,0.30307405]
[1745584044056,1.13333116,606.55,605.5,0.30307405]
[1745584045064,1.13333116,606.54,605.49,1.017]
[1745584045258,1.13333116,606.54,605.5,0.30307424]
[1745584045958,1.13333116,606.53,605.5,0.30307424]
[1745584046964,1.13333116,606.52,605.5,0.30307424]
[1745584047262,1.13333116,606.51,605.5,0.30307424]
[1745584047463,1.13333116,606.51,605.49,1.017]
[1745584047959,1.13333116,606.5,605.49,1.017]
[1745584048258,1.13333116,606.49,605.49,1.017]